Workbook

Sheet Inicio oayda
A22: Descargue la versión Kindle
K31: Miguel Cervantes Jiménez

Sheet Sistema basico oayda (hidden)
B1: LA DEMANDA Y OFERTA AGREGADA
B3: FUNCIÓN INVERSA DE LA DEMANDA AGREGADA | F3: COMPONENTES DE LA DEMANDA AGREGADA
B4: P | C4: b0 | D4: -b1 | F4: Ingreso | G4: =G5+G6+G7+G8+G9 -> 100
B5: =C5+(D5*G6) -> 69.6 | C5: =C9/D9*-1 -> 77.0 | D5: =1/D9 -> -0.4 | F5: Consumo | G5: =D23*0.7 -> 70
F6: Inversión | G6: =D23*0.2 -> 20
B7: FUNCIÓN DE DEMANDA AGREGADA | F7: Gasto gobierno | G7: =D23*0.1 -> 10
B8: Yd | C8: b0/b1 | D8: -1/b1 | F8: Exportaciones | G8: =D23*0.35 -> 35
B9: =C9+(D9*D22) -> 100.0 | C9: 208.0 | D9: -2.7 | F9: -Importaciones | G9: =D23*-0.35 -> (35)
C10: Inserte los datos correspondientes
B12: FUNCIÓN INVERSA DE OFERTA AGREGADA | F12: COMPONENTES DE LA OFERTA AGREGADA
B13: P | C13: -a0 | D13: a1 | F13: Ingreso | G13: =G14+G15+G16+G17+G18 -> 100
B14: =C14+(D14*D22) -> 20.0 | C14: =C18/D18*-1 -> 6.7 | D14: =1/D18 -> 0.3 | F14: Tierra | G14: =$D$23*0.1 -> 10
F15: Trabajo | G15: =$D$23*0.2 -> 20
B16: FUNCIÓN DE OFERTA AGREGADA | F16: Capital | G16: =$D$23*0.3 -> 30
B17: Ys | C17: a0/a1 | D17: 1/a1 | F17: Tecnología | G17: =$D$23*0.15 -> 15
B18: =C18+(D18*D22) -> 100.0 | C18: -20.0 | D18: 3.0 | F18: Instituciones | G18: =$D$23*0.25 -> 25
C19: Inserte los datos correspondientes
B21: VALORES DE EQUILIBRIO
B22: Nivel general de precios | D22: ='oculto oayda'!D37 -> 40.0
B23: Ingreso | D23: ='oculto oayda'!D38 -> 100.0
B25: Títulos
B26: Resultados
B27: Insertar datos
B28: Valores de equilibrio

Sheet oculto oayda (hidden)
A1: SISTEMA BÁSICO | O1: SISTEMA AMPLIADO
A2: Unidades | B2: P Oferta | C2: P Demanda | D2: Cantidad | E2: Factor Precio | F2: plin | G2: xlin | H2: plin | I2: xlin | O2: Unidades | P2: P Oferta | Q2: P Demanda | R2: Cantidad | S2: Factor Precio | T2: plin | U2: xlin | V2: plin | W2: xlin | Z2: Unidades | AA2: P Oferta | AB2: P Demanda | AC2: Cantidad | AD2: Factor Precio | AE2: plin | AF2: xlin | AG2: plin | AH2: xlin
B3: 0 | D3: 0 | G3: =$D$14 -> 100.00 | J3: PONDERADOR | P3: 0 | R3: 0 | U3: =$D$14 -> 100.00 | X3: PONDERADOR | AA3: 0 | AC3: 0 | AF3: =$D$14 -> 100.00 | AI3: PONDERADOR
A4: 0 | B4: =$C$29/$D$29*-1+(1/$D$29)*D4 -> 7 | C4: =($C$34/$D$34*-1)+(1/$D$34)*D4 -> 77 | D4: =$D$38*E4 -> 0 | E4: 0.00 | F4: =$D$38*J4 -> 0.00 | G4: =$D$37 -> 40.00 | H4: =$D$38 -> 100.00 | I4: =$D$37*J4 -> 0.00 | J4: 0.00 | O4: 0 | P4: =$Q$41/$R$41*-1+(1/$R$41)*R4 -> 7 | Q4: =($Q$32/$R$32*-1)+(1/$R$32)*R4 -> 77 | R4: =$R$46*S4 -> 0 | S4: 0.00 | T4: =$R$46*X4 -> 0.00 | U4: =$R$45 -> 40.00 | V4: =$R$46 -> 100.00 | W4: =$R$45*X4 -> 0.00 | X4: 0.00 | Z4: 0 | AA4: =$AB$41/$AC$41*-1+(1/$AC$41)*AC4 -> 7 | AB4: =($AB$32/$AC$32*-1)+(1/$AC$32)*AC4 -> 77 | AC4: =$AC$46*AD4 -> 0 | AD4: 0.00 | AE4: =$AC$46*AI4 -> 0.00 | AF4: =$AC$45 -> 40.00 | AG4: =$AC$46 -> 100.00 | AH4: =$AC$45*AI4 -> 0.00 | AI4: 0.00
A5: 1 | B5: =$C$29/$D$29*-1+(1/$D$29)*D5 -> 10 | C5: =($C$34/$D$34*-1)+(1/$D$34)*D5 -> 73 | D5: =$D$38*E5 -> 10 | E5: 0.10 | F5: =$D$38*J5 -> 10.00 | G5: =$D$37 -> 40.00 | H5: =$D$38 -> 100.00 | I5: =$D$37*J5 -> 4.00 | J5: 0.10 | O5: 1 | P5: =$Q$41/$R$41*-1+(1/$R$41)*R5 -> 10 | Q5: =($Q$32/$R$32*-1)+(1/$R$32)*R5 -> 73 | R5: =$R$46*S5 -> 10 | S5: 0.10 | T5: =$R$46*X5 -> 10.00 | U5: =$R$45 -> 40.00 | V5: =$R$46 -> 100.00 | W5: =$R$45*X5 -> 4.00 | X5: 0.10 | Z5: 1 | AA5: =$AB$41/$AC$41*-1+(1/$AC$41)*AC5 -> 10 | AB5: =($AB$32/$AC$32*-1)+(1/$AC$32)*AC5 -> 73 | AC5: =$AC$46*AD5 -> 10 | AD5: 0.10 | AE5: =$AC$46*AI5 -> 10.00 | AF5: =$AC$45 -> 40.00 | AG5: =$AC$46 -> 100.00 | AH5: =$AC$45*AI5 -> 4.00 | AI5: 0.10
A6: 2 | B6: 13 | C6: 70 | D6: 20 | E6: 0.20 | F6: 20.00 | G6: 40.00 | H6: 100.00 | I6: 8.00 | J6: 0.20 | O6: 2 | P6: 13 | Q6: 70 | R6: 20 | S6: 0.20 | T6: 20.00 | U6: 40.00 | V6: 100.00 | W6: 8.00 | X6: 0.20 | Z6: 2 | AA6: 13 | AB6: 70 | AC6: 20 | AD6: 0.20 | AE6: 20.00 | AF6: 40.00 | AG6: 100.00 | AH6: 8.00 | AI6: 0.20
A7: 3 | B7: 17 | C7: 66 | D7: 30 | E7: 0.30 | F7: 30.00 | G7: 40.00 | H7: 100.00 | I7: 12.00 | J7: 0.30 | O7: 3 | P7: 17 | Q7: 66 | R7: 30 | S7: 0.30 | T7: 30.00 | U7: 40.00 | V7: 100.00 | W7: 12.00 | X7: 0.30 | Z7: 3 | AA7: 17 | AB7: 66 | AC7: 30 | AD7: 0.30 | AE7: 30.00 | AF7: 40.00 | AG7: 100.00 | AH7: 12.00 | AI7: 0.30
A8: 4 | B8: 20 | C8: 62 | D8: 40 | E8: 0.40 | F8: 40.00 | G8: 40.00 | H8: 100.00 | I8: 16.00 | J8: 0.40 | O8: 4 | P8: 20 | Q8: 62 | R8: 40 | S8: 0.40 | T8: 40.00 | U8: 40.00 | V8: 100.00 | W8: 16.00 | X8: 0.40 | Z8: 4 | AA8: 20 | AB8: 62 | AC8: 40 | AD8: 0.40 | AE8: 40.00 | AF8: 40.00 | AG8: 100.00 | AH8: 16.00 | AI8: 0.40
A9: 5 | B9: 23 | C9: 59 | D9: 50 | E9: 0.50 | F9: 50.00 | G9: 40.00 | H9: 100.00 | I9: 20.00 | J9: 0.50 | O9: 5 | P9: 23 | Q9: 59 | R9: 50 | S9: 0.50 | T9: 50.00 | U9: 40.00 | V9: 100.00 | W9: 20.00 | X9: 0.50 | Z9: 5 | AA9: 23 | AB9: 59 | AC9: 50 | AD9: 0.50 | AE9: 50.00 | AF9: 40.00 | AG9: 100.00 | AH9: 20.00 | AI9: 0.50
A10: 6 | B10: 27 | C10: 55 | D10: 60 | E10: 0.60 | F10: 60.00 | G10: 40.00 | H10: 100.00 | I10: 24.00 | J10: 0.60 | O10: 6 | P10: 27 | Q10: 55 | R10: 60 | S10: 0.60 | T10: 60.00 | U10: 40.00 | V10: 100.00 | W10: 24.00 | X10: 0.60 | Z10: 6 | AA10: 27 | AB10: 55 | AC10: 60 | AD10: 0.60 | AE10: 60.00 | AF10: 40.00 | AG10: 100.00 | AH10: 24.00 | AI10: 0.60
A11: 7 | B11: 30 | C11: 51 | D11: 70 | E11: 0.70 | F11: 70.00 | G11: 40.00 | H11: 100.00 | I11: 28.00 | J11: 0.70 | O11: 7 | P11: 30 | Q11: 51 | R11: 70 | S11: 0.70 | T11: 70.00 | U11: 40.00 | V11: 100.00 | W11: 28.00 | X11: 0.70 | Z11: 7 | AA11: 30 | AB11: 51 | AC11: 70 | AD11: 0.70 | AE11: 70.00 | AF11: 40.00 | AG11: 100.00 | AH11: 28.00 | AI11: 0.70
A12: 8 | B12: 33 | C12: 47 | D12: 80 | E12: 0.80 | F12: 80.00 | G12: 40.00 | H12: 100.00 | I12: 32.00 | J12: 0.80 | O12: 8 | P12: 33 | Q12: 47 | R12: 80 | S12: 0.80 | T12: 80.00 | U12: 40.00 | V12: 100.00 | W12: 32.00 | X12: 0.80 | Z12: 8 | AA12: 33 | AB12: 47 | AC12: 80 | AD12: 0.80 | AE12: 80.00 | AF12: 40.00 | AG12: 100.00 | AH12: 32.00 | AI12: 0.80
A13: 9 | B13: 37 | C13: 44 | D13: 90 | E13: 0.90 | F13: 90.00 | G13: 40.00 | H13: 100.00 | I13: 36.00 | J13: 0.90 | O13: 9 | P13: 37 | Q13: 44 | R13: 90 | S13: 0.90 | T13: 90.00 | U13: 40.00 | V13: 100.00 | W13: 36.00 | X13: 0.90 | Z13: 9 | AA13: 37 | AB13: 44 | AC13: 90 | AD13: 0.90 | AE13: 90.00 | AF13: 40.00 | AG13: 100.00 | AH13: 36.00 | AI13: 0.90
A14: 10 | B14: 40 | C14: 40 | D14: 100 | E14: 1.00 | F14: 100.00 | G14: 40.00 | H14: 100.00 | I14: 40.00 | J14: 1.00 | O14: 10 | P14: 40 | Q14: 40 | R14: 100 | S14: 1.00 | T14: 100.00 | U14: 40.00 | V14: 100.00 | W14: 40.00 | X14: 1.00 | Z14: 10 | AA14: 40 | AB14: 40 | AC14: 100 | AD14: 1.00 | AE14: 100.00 | AF14: 40.00 | AG14: 100.00 | AH14: 40.00 | AI14: 1.00
A15: 11 | B15: 43 | C15: 36 | D15: 110 | E15: 1.10 | O15: 11 | P15: 43 | Q15: 36 | R15: 110 | S15: 1.10 | Z15: 11 | AA15: 43 | AB15: 36 | AC15: 110 | AD15: 1.10
A16: 12 | B16: 47 | C16: 33 | D16: 120 | E16: 1.20 | O16: 12 | P16: 47 | Q16: 33 | R16: 120 | S16: 1.20 | Z16: 12 | AA16: 47 | AB16: 33 | AC16: 120 | AD16: 1.20
A17: 13 | B17: 50 | C17: 29 | D17: 130 | E17: 1.30 | O17: 13 | P17: 50 | Q17: 29 | R17: 130 | S17: 1.30 | Z17: 13 | AA17: 50 | AB17: 29 | AC17: 130 | AD17: 1.30
A18: 14 | B18: 53 | C18: 25 | D18: 140 | E18: 1.40 | O18: 14 | P18: 53 | Q18: 25 | R18: 140 | S18: 1.40 | Z18: 14 | AA18: 53 | AB18: 25 | AC18: 140 | AD18: 1.40
A19: 15 | B19: 57 | C19: 21 | D19: 150 | E19: 1.50 | O19: 15 | P19: 57 | Q19: 21 | R19: 150 | S19: 1.50 | Z19: 15 | AA19: 57 | AB19: 21 | AC19: 150 | AD19: 1.50
A20: 16 | B20: 60 | C20: 18 | D20: 160 | E20: 1.60 | O20: 16 | P20: 60 | Q20: 18 | R20: 160 | S20: 1.60 | Z20: 16 | AA20: 60 | AB20: 18 | AC20: 160 | AD20: 1.60
A21: 17 | B21: 63 | C21: 14 | D21: 170 | E21: 1.70 | O21: 17 | P21: 63 | Q21: 14 | R21: 170 | S21: 1.70 | Z21: 17 | AA21: 63 | AB21: 14 | AC21: 170 | AD21: 1.70
A22: 18 | B22: 67 | C22: 10 | D22: 180 | E22: 1.80 | O22: 18 | P22: 67 | Q22: 10 | R22: 180 | S22: 1.80 | Z22: 18 | AA22: 67 | AB22: 10 | AC22: 180 | AD22: 1.80
A23: 19 | B23: 70 | C23: 7 | D23: 190 | E23: 1.90 | O23: 19 | P23: 70 | Q23: 7 | R23: 190 | S23: 1.90 | Z23: 19 | AA23: 70 | AB23: 7 | AC23: 190 | AD23: 1.90
A24: 20 | B24: 73 | C24: 3 | D24: 200 | E24: 2.00 | O24: 20 | P24: 73 | Q24: 3 | R24: 200 | S24: 2.00 | Z24: 20 | AA24: 73 | AB24: 3 | AC24: 200 | AD24: 2.00
P26: FUNCIÓN INVERSA DE LA DEMANDA AGREGADA | T26: COMPONENTES DE LA DEMANDA AGREGADA | W26: POLÍTICA ECONÓMICA | AA26: FUNCIÓN INVERSA DE LA DEMANDA AGREGADA | AE26: COMPONENTES DE LA DEMANDA AGREGADA | AH26: POLÍTICA ECONÓMICA
B27: FUNCIÓN DE OFERTA | P27: P | Q27: b0 | R27: -b1 | T27: Ingreso | U27: =U28+U29+U30+U31+U32 -> 100 | V27: =V28+V29+V30+V31+V32 -> 0 | W27: 0% | AA27: P | AB27: b0 | AC27: -b1 | AE27: Ingreso | AF27: =AF28+AF29+AF30+AF31+AF32 -> 100 | AG27: =AG28+AG29+AG30+AG31+AG32 -> 100 | AH27: ='Sistema ampliado oayda'!I4 -> 0%
B28: xs | C28: -a0 | D28: a1 | P28: =Q28+(R28*U29) -> 69.6 | Q28: =Q32/R32*-1 -> 77.0 | R28: =1/R32 -> -0.4 | T28: Consumo | U28: =R46*0.7 -> 70 | V28: =T46*0.7 -> 0 | W28: 0% | AA28: =AB28+(AC28*AF29) -> 69.6 | AB28: =AB32/AC32*-1 -> 77.0 | AC28: =1/AC32 -> -0.4 | AE28: Consumo | AF28: =AC46*0.7 -> 70 | AG28: =AE46*0.7 -> 70 | AH28: ='Sistema ampliado oayda'!I5 -> 0%
B29: =C29+(D29*D40) -> (20.0) | C29: ='Sistema basico oayda'!C18 -> (20.0) | D29: ='Sistema basico oayda'!D18 -> 3.0 | T29: Inversión | U29: =R46*0.2 -> 20 | V29: =T46*0.2 -> 0 | W29: 0% | AE29: Inversión | AF29: =AC46*0.2 -> 20 | AG29: =AE46*0.2 -> 20 | AH29: ='Sistema ampliado oayda'!I6 -> 0%
P30: FUNCIÓN DE DEMANDA AGREGADA | T30: Gasto gobierno | U30: =R46*0.1 -> 10 | V30: =T46*0.1 -> 0 | W30: 0% | AA30: FUNCIÓN DE DEMANDA AGREGADA | AE30: Gasto gobierno | AF30: =AC46*0.1 -> 10 | AG30: =AE46*0.1 -> 10 | AH30: ='Sistema ampliado oayda'!I7 -> 0%
P31: Yd | Q31: b0/b1 | R31: -1/b1 | T31: Exportaciones | U31: =R46*0.35 -> 35 | V31: =T46*0.35 -> 0 | W31: 0% | AA31: Yd | AB31: b0/b1 | AC31: -1/b1 | AE31: Exportaciones | AF31: =AC46*0.35 -> 35 | AG31: =AE46*0.35 -> 35 | AH31: ='Sistema ampliado oayda'!I8 -> 0%
B32: FUNCIÓN DE DEMANDA | P32: =Q32+(R32*R45) -> 100.0 | Q32: ='Sistema ampliado oayda'!C9 -> 208.0 | R32: ='Sistema ampliado oayda'!D9 -> -2.7 | T32: -Importaciones | U32: =R46*-0.35 -> (35) | V32: =T46*-0.35 -> 0 | W32: 0% | AA32: =AB32+(AC32*AC45) -> 100.0 | AB32: =Q32*(1+SUM(AH27:AH32)) -> 208.0 | AC32: =R32 -> -2.7 | AE32: -Importaciones | AF32: =AC46*-0.35 -> (35) | AG32: =AE46*-0.35 -> (35) | AH32: ='Sistema ampliado oayda'!I9 -> 0%
B33: xd | C33: b0 | D33: -b1 | Q33: Inserte los datos correspondientes | AB33: Inserte los datos correspondientes
B34: =C34+(D34*D40) -> 208.0 | C34: ='Sistema basico oayda'!C9 -> 208.0 | D34: ='Sistema basico oayda'!D9 -> (2.7)
P35: FUNCIÓN INVERSA DE OFERTA AGREGADA | T35: COMPONENTES DE LA OFERTA AGREGADA | W35: POLÍTICA ECONÓMICA | AA35: FUNCIÓN INVERSA DE OFERTA AGREGADA | AE35: COMPONENTES DE LA OFERTA AGREGADA | AH35: POLÍTICA ECONÓMICA
P36: P | Q36: -a0 | R36: a1 | T36: Ingreso | U36: =U37+U38+U39+U40+U41 -> 190 | V36: =V37+V38+V39+V40+V41 -> 0 | W36: 0% | AA36: P | AB36: -a0 | AC36: a1 | AE36: Ingreso | AF36: =AF37+AF38+AF39+AF40+AF41 -> 190 | AG36: =AG37+AG38+AG39+AG40+AG41 -> 0 | AH36: ='Sistema ampliado oayda'!I13 -> 0%
B37: Precio de Equilibrio | D37: =(C29-C34)/(D34-D29) -> 40.0 | P37: =Q37+(R37*R45) -> 20.0 | Q37: =Q41/R41*-1 -> 6.7 | R37: =1/R41 -> 0.3 | T37: Tierra | U37: =$D$23*0.1 -> 19 | V37: =$F$23*0.1 -> 0 | W37: 0% | AA37: =AB37+(AC37*AC45) -> 20.0 | AB37: =AB41/AC41*-1 -> 6.7 | AC37: =1/AC41 -> 0.3 | AE37: Tierra | AF37: =$D$23*0.1 -> 19 | AG37: =$F$23*0.1 -> 0 | AH37: ='Sistema ampliado oayda'!I14 -> 0%
B38: Cantidad de Equilibrio | D38: =((D34*C29)-(C34*D29))/(D34-D29) -> 100.0 | T38: Trabajo | U38: =$D$23*0.2 -> 38 | V38: =$F$23*0.2 -> 0 | W38: 0% | AE38: Trabajo | AF38: =$D$23*0.2 -> 38 | AG38: =$F$23*0.2 -> 0 | AH38: ='Sistema ampliado oayda'!I15 -> 0%
P39: FUNCIÓN DE OFERTA AGREGADA | T39: Capital | U39: =$D$23*0.3 -> 57 | V39: =$F$23*0.3 -> 0 | W39: 0% | AA39: FUNCIÓN DE OFERTA AGREGADA | AE39: Capital | AF39: =$D$23*0.3 -> 57 | AG39: =$F$23*0.3 -> 0 | AH39: ='Sistema ampliado oayda'!I16 -> 0%
P40: Ys | Q40: a0/a1 | R40: 1/a1 | T40: Tecnología | U40: =$D$23*0.15 -> 29 | V40: =$F$23*0.15 -> 0 | W40: 0% | AA40: Ys | AB40: a0/a1 | AC40: 1/a1 | AE40: Tecnología | AF40: =$D$23*0.15 -> 29 | AG40: =$F$23*0.15 -> 0 | AH40: ='Sistema ampliado oayda'!I17 -> 0%
P41: =Q41+(R41*R45) -> 100.0 | Q41: ='Sistema ampliado oayda'!C18 -> -20.0 | R41: ='Sistema ampliado oayda'!D18 -> 3.0 | T41: Instituciones | U41: =$D$23*0.25 -> 48 | V41: =$F$23*0.25 -> 0 | W41: 0% | AA41: =AB41+(AC41*AC45) -> 100.0 | AB41: =Q41*(1-SUM(AH36:AH41)) -> -20.0 | AC41: =R41 -> 3.0 | AE41: Instituciones | AF41: =$D$23*0.25 -> 48 | AG41: =$F$23*0.25 -> 0 | AH41: ='Sistema ampliado oayda'!I18 -> 0%
Q42: Inserte los datos correspondientes | AB42: Inserte los datos correspondientes
P44: VALORES DE EQUILIBRIO | R44: Equilibrio 1 | T44: Equilibrio 2 | AA44: VALORES DE EQUILIBRIO | AC44: Equilibrio 1 | AE44: Equilibrio 2
P45: Nivel general de precios | R45: =(Q41-Q32)/(R32-R41) -> 40.0 | T45: ='oculto oayda'!T60 -> 0.0 | AA45: Nivel general de precios | AC45: =(AB41-AB32)/(AC32-AC41) -> 40.0 | AE45: =AC45 -> 40.0
P46: Ingreso | R46: =((R32*Q41)-(Q32*R41))/(R32-R41) -> 100.0 | T46: ='oculto oayda'!T61 -> 0.0 | AA46: Ingreso | AC46: =((AC32*AB41)-(AB32*AC41))/(AC32-AC41) -> 100.0 | AE46: =AC46 -> 100.0

Sheet Sistema ampliado oayda (hidden)
B1: LA DEMANDA Y OFERTA AGREGADA
B2: Política económica
B3: FUNCIÓN INVERSA DE LA DEMANDA AGREGADA | F3: COMPONENTES DE LA DEMANDA AGREGADA | I3: POLÍTICA ECONÓMICA
B4: P | C4: b0 | D4: -b1 | F4: Ingreso | G4: =G5+G6+G7+G8+G9 -> 100 | H4: =H5+H6+H7+H8+H9 -> 100 | I4: 0%
B5: =C5+(D5*G6) -> 69.6 | C5: =C9/D9*-1 -> 77.0 | D5: =1/D9 -> -0.4 | F5: Consumo | G5: =D23*0.7 -> 70 | H5: =F23*0.7 -> 70 | I5: 0%
F6: Inversión | G6: =D23*0.2 -> 20 | H6: =F23*0.2 -> 20 | I6: 0%
B7: FUNCIÓN DE DEMANDA AGREGADA | F7: Gasto gobierno | G7: =D23*0.1 -> 10 | H7: =F23*0.1 -> 10 | I7: 0%
B8: Yd | C8: b0/b1 | D8: -1/b1 | F8: Exportaciones | G8: =D23*0.35 -> 35 | H8: =F23*0.35 -> 35 | I8: 0%
B9: =C9+(D9*D22) -> 100.0 | C9: 208.0 | D9: -2.7 | F9: -Importaciones | G9: =D23*-0.35 -> (35) | H9: =F23*-0.35 -> (35) | I9: 0%
C10: Inserte los datos correspondientes
B12: FUNCIÓN INVERSA DE OFERTA AGREGADA | F12: COMPONENTES DE LA OFERTA AGREGADA | I12: POLÍTICA ECONÓMICA
B13: P | C13: -a0 | D13: a1 | F13: Ingreso | G13: =G14+G15+G16+G17+G18 -> 100 | H13: =H14+H15+H16+H17+H18 -> 100 | I13: 0%
B14: =C14+(D14*D22) -> 20.0 | C14: =C18/D18*-1 -> 6.7 | D14: =1/D18 -> 0.3 | F14: Tierra | G14: =$D$23*0.1 -> 10 | H14: =$F$23*0.1 -> 10 | I14: 0%
F15: Trabajo | G15: =$D$23*0.2 -> 20 | H15: =$F$23*0.2 -> 20 | I15: 0%
B16: FUNCIÓN DE OFERTA AGREGADA | F16: Capital | G16: =$D$23*0.3 -> 30 | H16: =$F$23*0.3 -> 30 | I16: 0%
B17: Ys | C17: a0/a1 | D17: 1/a1 | F17: Tecnología | G17: =$D$23*0.15 -> 15 | H17: =$F$23*0.15 -> 15 | I17: 0%
B18: =C18+(D18*D22) -> 100.0 | C18: -20.0 | D18: 3.0 | F18: Instituciones | G18: =$D$23*0.25 -> 25 | H18: =$F$23*0.25 -> 25 | I18: 0%
C19: Inserte los datos correspondientes
B21: VALORES DE EQUILIBRIO | D21: Equilibrio 1 | F21: Equilibrio 2
B22: Nivel general de precios | D22: ='oculto oayda'!R45 -> 40.0 | F22: ='oculto oayda'!AC45 -> 40.0
B23: Ingreso | D23: ='oculto oayda'!R46 -> 100.0 | F23: ='oculto oayda'!AC46 -> 100.0
B25: Títulos
B26: Resultados
B27: Insertar datos
B28: Valores de equilibrio
B29: Política económica
